Cogmind - Beta 15 @@@ ROGUE MODE // 2025.09.26 @ 19:43:31 Player: Figgis Result: Core destroyed Performance ------------- Evolutions (0) 0 Regions Visited (2) 400 Robots Destroyed (15) 75 Value Destroyed (442) 442 Prototype IDs (0) 0 Alien Tech Used (0) 0 Bonus (0) 0 TOTAL SCORE: 917 Bonus ------- None Cogmind --------- Core Integrity 0/250 Matter 144/300 Energy 100/100 System Corruption 9% Temperature Cool (0) Movement Core (450) Ox8 Location -10/Subcaves Parts ------- > --- POWER (1) -------- Subdweller Power Source > --- PROPULSION (2) --- Aluminum Leg Aluminum Leg > --- UTILITY (2) ------ Large Storage Unit > --- WEAPON (2) ------- Assault Rifle > --- INVENTORY (15) --- Ion Engine Subdweller Power Source Aluminum Leg Peak State ------------ > --- POWER ------------ Light Ion Engine > --- PROPULSION ------- Aluminum Leg Aluminum Leg > --- UTILITY ---------- Small Storage Unit Large Storage Unit > --- WEAPON ----------- Assault Rifle Assault Rifle > --- INVENTORY -------- Ion Engine Assault Rifle Assault Rifle Mining Claw [Rating: 7] Favorites ----------- Power Ion Engine Engine Ion Engine Propulsion Aluminum Leg Leg Aluminum Leg Utility Large Storage Unit Storage Large Storage Unit Weapon Assault Rifle Ballistic Gun Assault Rifle Slashing Weapon Mining Claw Build | -11 -10 -10 ------- Run | Yrd Mat Sub Slots Evolved . | . . . Power . | . . . Propulsion . | . . . Utility . | . . . Weapon . | . . . Parts Attached 17 | 3 5 9 Power 3 | . 1 2 Engine 3 | . 1 2 Core . | . . . Reactor . | . . . Propulsion 7 | 2 . 5 Treads . | . . . Leg 7 | 2 . 5 Wheel . | . . . Hover . | . . . Flight . | . . . Utility 2 | . 2 . Device . | . . . Storage 2 | . 2 . Processor . | . . . Hackware . | . . . Protection . | . . . Artifact . | . . . Weapon 5 | 1 2 2 Energy Gun . | . . . Energy Cannon . | . . . Ballistic Gun 4 | 1 2 1 Ballistic Cannon . | . . . Launcher . | . . . Special Weapon . | . . . Impact Weapon . | . . . Slashing Weapon 1 | . . 1 Piercing Weapon . | . . . Special Melee Weapon . | . . . Unidentified Prototypes . | . . . Parts Lost 11 | . 2 9 Power 2 | . 1 1 Propulsion 5 | . . 5 Utility . | . . . Weapon 4 | . 1 3 Highest Loss Streak 4 | . 2 4 To Critical Strikes . | . . . Average Backups 5 | 3 5 5 Power 1 | 1 1 1 Propulsion 2 | . 1 2 Utility . | . . . Weapon 1 | 1 2 . Tool/Special . | . . . Unused Backups 6 | . 3 3 Power 2 | . . 2 Propulsion 1 | . . 1 Utility . | . . . Weapon 2 | . 2 . Tool/Special 1 | . 1 . Average Slot Usage (%) 79 | . 78 80 Engine 11 | . 8 13 Leg 27 | . 28 26 Storage 13 | . 12 14 Ballistic Gun 22 | . 27 18 Slashing Weapon 3 | . . 6 Peak Build Rating 7 | 3 7 6 Average Rating 5 | 1 5 5 On Entrance 3 | . 3 6 Naked Turns . | . . . Heaviest Build 29 | 2 27 29 Greatest Support 20 | 3 20 20 Greatest Overweight (x) 2 | . 1 2 Average Overweight (x) . | . . 1 Largest Inventory Capacity 15 | 5 15 15 Average Capacity 13 | 5 13 15 Most Carried 10 | 5 10 9 Average Carried 5 | 3 5 5 Final Capacity 15 | 5 15 15 Final Carried 10 | 5 10 3 Class Distribution -------------------- 100% | Mutant Dominant Class ---------------- Mutant | -10/Materials Mutant | -10/Subcaves Resources | -11 -10 -10 ----------- Run | Yrd Mat Sub Matter Collected 542 | 228 139 175 Remotely . | . . . Salvage Created 541 | . 366 175 Parts 33 | . 27 6 Haulers Intercepted . | . . . Recyclers Shooed . | . . . Parts Field Recycled . | . . . Retrieved Matter . | . . . Parts Self-Destructed 2 | . . 2 Prevented . | . . . Kills | -11 -10 -10 ------- Run | Yrd Mat Sub Combat Hostiles Destroyed 14 | . 10 4 Guns 14 | . 10 4 Classes Destroyed 4 | . 3 1 Worker 1 | . 1 . Swarmer 3 | . 3 . Grunt 7 | . 7 . Subdweller 4 | . . 4 Best Kill Streak 3 | . 3 2 Combat Bots Only 3 | . 3 2 Max Kills in Single Turn 1 | . 1 1 Gunslinging . | . . . Exploded . | . . . Melee . | . . . Uniques/NPCs Destroyed . | . . . Combat | -11 -10 -10 -------- Run | Yrd Mat Sub Hostile Shots Fired 113 | . 59 54 Missed 35 | . 20 15 Hits 78 | . 39 39 Projectile 78 | . 39 39 Critical Strikes 1 | . 1 . Damage Taken 1395 | . 485 910 Core 252 | . 77 175 Absorbed by Shields . | . . . Core Remaining (%) 100 | 100 . . Volleys Fired 68 | . 32 36 Largest 2 | . 2 2 Hottest 40 | . 40 40 Shots Fired 121 | . 64 57 Gun 121 | . 64 57 Cannon . | . . . Launcher . | . . . Special . | . . . Kinetic 121 | . 64 57 Thermal . | . . . Explosive . | . . . Electromagnetic . | . . . Robot Hit Streak 11 | . 8 11 Robot Miss Streak 3 | . 3 2 Penetration Max . | . . . Secondary Targets 2 | . 2 . Max Gunslinging Chain 1 | . 1 . Shots Hit Robots 80 | . 36 44 Core Hits 27 | . 18 9 Critical Kills 1 | . 1 . Critical Parts Destroyed . | . . . Critical Strikes 1 | . 1 . Destroy 1 | . 1 . Melee Attacks 17 | . . 17 Impact . | . . . Slashing 17 | . . 17 Piercing . | . . . Sneak Attacks . | . . . Combat Hostiles . | . . . Follow-up Attacks . | . . . Damage Inflicted 947 | . 488 459 Guns 872 | . 488 384 Cannons . | . . . Explosions . | . . . Melee 48 | . . 48 Ramming 27 | . . 27 Kinetic 872 | . 488 384 Thermal . | . . . Explosive . | . . . Electromagnetic . | . . . Impact . | . . . Slashing 48 | . . 48 Piercing . | . . . Highest Corruption 9 | . . 9 Average Corruption 5 | . . 5 Corruption Purged . | . . . Corruption Blocked . | . . . Overload Shots . | . . . Overflow Damage . | . . . Projectiles . | . . . Explosions . | . . . Melee . | . . . Knockbacks . | . . . Impact . | . . . Kinetic . | . . . Secondary . | . . . Self-Inflicted Damage 27 | . . 27 Shots . | . . . Rammed . | . . . Targets Rammed . | . . . Kicked . | . . . Crushed . | . . . Highest Temperature 27 | . 27 . Average Temperature 9 | . 9 . Received Heat Transfer 474 | . 240 234 Siege Activations . | . . . Martial Activations . | . . . Shielding Activations . | . . . Robots Disrupted . | . . . Combat Hostiles . | . . . Robots Corrupted . | . . . Combat Hostiles . | . . . Parts Fried . | . . . Impact Corruptions . | . . . Robots Melted . | . . . Combat Hostiles . | . . . Parts Melted 1 | . . 1 Heat Transferred . | . . . Parts Sabotaged . | . . . Parts Stolen . | . . . Parts Stripped . | . . . Power Chain Reactions . | . . . Alert | -11 -10 -10 ------- Run | Yrd Mat Sub Maximum Alert Level . | . . . Low Security (%) 100 | 100 100 . Level 1 . | . . . Level 2 . | . . . Level 3 . | . . . Level 4 . | . . . Level 5 . | . . . High Security . | . . . Max Security . | . . . Peak Influence 155 | . 155 . Initial . | . . . Average 53 | . 55 . Influence Increases 265 | . 265 . Destroy 0b10 Robot/C 200 | . 200 . Destroy 0b10 Robot/NC 5 | . 5 . Destroy Leader 30 | . 30 . Lose Combat Pursuer 30 | . 30 . Influence Decreases 265 | . 174 91 Entered New Map 44 | . . 44 Time Decay 181 | . 154 27 Lost Part 40 | . 20 20 Squads Dispatched 1 | . 1 . Investigation . | . . . Extermination . | . . . Reinforcement 1 | . 1 . Assault . | . . . Garrison . | . . . Intercept . | . . . Searches Triggered . | . . . Construction Impeded . | . . . Haulers Reinforced . | . . . Active Scanning Responses . | . . . Cargo Convoy Interrupts . | . . . Stealth | -11 -10 -10 --------- Run | Yrd Mat Sub Distress Signals 3 | . 3 . Communications Jammed . | . . . Distress Signals . | . . . Times Spotted 21 | . 17 4 Peak Tracking Total 6 | . 6 2 Tactical Retreats 3 | . 3 . Traps | -11 -10 -10 ------- Run | Yrd Mat Sub Traps Triggered 1 | . 1 . Indirectly . | . . . Trap Hack Attempts . | . . . Triggered . | . . . Disarmed . | . . . Reprogrammed . | . . . Reused . | . . . Traps Extracted . | . . . Installed . | . . . Triggered . | . . . Machines | -11 -10 -10 ---------- Run | Yrd Mat Sub Machines Disabled . | . . . Max in Single Turn . | . . . Machines Repaired . | . . . Machines Dismantled . | . . . Machines Sabotaged . | . . . Overloaded Fab Kills . | . . . Hacking | -11 -10 -10 --------- Run | Yrd Mat Sub Machines Accessed 1 | . 1 . Terminals 1 | . 1 . Fabricators . | . . . Repair Stations . | . . . Recycling Units . | . . . Scanalyzers . | . . . Garrison Access . | . . . Total Hacks 3 | . 3 . Successful . | . . . Failed 3 | . 3 . Catastrophic . | . . . Database Lockouts . | . . . Manual 3 | . 3 . Terminals 3 | . 3 . Fabricators . | . . . Repair Stations . | . . . Recycling Units . | . . . Scanalyzers . | . . . Garrison Access . | . . . Terminal Hacks . | . . . Fabricator Hacks . | . . . Repair Station Hacks . | . . . Recycling Unit Hacks . | . . . Scanalyzer . | . . . Garrison Access Hacks . | . . . Unauthorized Hacks . | . . . Terminals . | . . . Fabricators . | . . . Repair Stations . | . . . Recycling Units . | . . . Scanalyzers . | . . . Garrison Access . | . . . Data Cores Recovered . | . . . Used . | . . . Hacking Detections 1 | . 1 . Full Trace Events . | . . . Feedback Events . | . . . Feedback Blocked . | . . . Robot Schematics Acquired . | . . . Robots Built . | . . . Authchips . | . . . Time . | . . . Total Robot Build Rating . | . . . Part Schematics Acquired . | . . . Parts Built . | . . . Authchips . | . . . Time . | . . . Total Part Build Rating . | . . . Parts Repaired . | . . . Time . | . . . Parts Recycled . | . . . Recycled Matter . | . . . Retrieved Matter . | . . . Retrieved Components . | . . . Parts Scanalyzed . | . . . Part Schematics Acquired . | . . . Parts Damaged . | . . . Bothacking | -11 -10 -10 ------------ Run | Yrd Mat Sub Used RIF Installer . | . . . Robots Hacked . | . . . Non-combat . | . . . Combat . | . . . Robot Hacks Applied . | . . . Relay Couplers Released . | . . . Fabnet Peak Effective % . | . . . Robots Rewired . | . . . Allies Hacked . | . . . Hacks Repelled . | . . . Allies | -11 -10 -10 -------- Run | Yrd Mat Sub Total Allies . | . . . Largest Group . | . . . Highest-Rated Group . | . . . Highest-Rated Ally . | . . . Total Orders . | . . . Ally Attacks . | . . . Total Damage . | . . . Kills . | . . . Allies Corrupted . | . . . Allies Melted . | . . . Intel | -11 -10 -10 ------- Run | Yrd Mat Sub Active Infowar (turns) . | . . . Robot Analysis Total . | . . . Derelict Logs Recovered . | . . . Drone Launches . | . . . Drone Recoveries . | . . . Exploration | -11 -10 -10 ------------- Run | Yrd Mat Sub Turns Passed 1325 | 25 657 643 Spaces Moved 600 | 30 366 204 Core 94 | 30 64 . Treads . | . . . Legs 506 | . 302 204 Wheels . | . . . Hover . | . . . Flight . | . . . Fastest Speed 50 | 50 50 190 Average Speed 156 | 50 145 191 Slowest Speed 260 | 50 190 260 Overloaded Moves . | . . . Propulsion Burnouts . | . . . Robots Hopped . | . . . Potential Cave-ins . | . . . Cave-ins Triggered . | . . . Exploration Rate (%) 21 | 3 54 7 Regions Visited 2 Branch Regions 1 Pre-discovered Areas . | . . . Known Exits Taken . | . . . Unknown Exits Taken 2 | 1 1 . Scrap Searched . | . . . Spaces Dug . | . . . Terrain Destroyed . | . . . Melee . | . . . Projectile . | . . . AOE . | . . . Terrain Rammed 16 | . . 16 Walls Destroyed . | . . . Machines Disabled . | . . . Actions | -11 -10 -10 --------- Run | Yrd Mat Sub Total 784 | 38 428 318 Wait 43 | . 10 33 Move 598 | 29 365 204 Hop . | . . . Pick Up 20 | 6 12 2 Fast Attach 3 | 2 1 . Attach 14 | 1 4 9 Detach . | . . . Swap 2 | . . 2 Drop 4 | . 4 . Fire 68 | . 32 36 Melee 17 | . . 17 Ram 15 | . . 15 Kick . | . . . Crush . | . . . Escape Stasis . | . . . Rewire . | . . . Trap . | . . . Miscellaneous . | . . . Route ------- -11/Scrapyard -10/Materials (discovered 3 exits: [*Mat] / [*Min] / [*Sub]) -10/Subcaves (discovered 1 exit: [*Mat]) History --------- Turn | Location | Event 16 | -11/Scrapyard | Discovered new exit (range 15) 26 | -11/Scrapyard | Entered Materials 102 | -10/Materials | Discovered new exit (range 5) 175 | -10/Materials | Discovered new exit (range 16) 314 | -10/Materials | Build established: Mutant 391 | -10/Materials | Discovered new exit (range 9) 526 | -10/Materials | Derelicts attacked the area 683 | -10/Materials | Entered Subcaves 700 | -10/Subcaves | Discovered new exit (range 14) 821 | -10/Subcaves | Lost 3 parts (2n1w) 1196 | -10/Subcaves | Core integrity fell below 50% 1260 | -10/Subcaves | Lost 4 parts (1p1n2w) 1277 | -10/Subcaves | Core integrity fell below 20% 1326 | -10/Subcaves | Core destroyed Last Messages --------------- 01290_ Assault Rifle broken. 01290_ Destabilizing: Short circuit. 01294_ Slammed into Twisted Machinery. 01294_ Destabilizing: Core damaged (-5). 01294_ Destabilizing: System corrupted (+2). 01299_ Slammed into Twisted Machinery. 01299_ Destabilizing: Core damaged (-10). 01299_ Destabilizing: System corrupted (+1). 01303_ Slammed into Twisted Machinery. 01309_ Subatomizers dissect the Disposable Heat Sink. 01312_ Slammed into Twisted Machinery. 01316_ CL-0FC(u) builds Twisted Machinery. 01317_ Slammed into Twisted Machinery. 01317_ Destabilizing: System corrupted (+2). 01320_ Subatomizers dissect the Disposable Heat Sink. 01321_ Slammed into Twisted Machinery. 01321_ Destabilizing: Core damaged (-2). 01321_ Destabilizing: Core damaged (-10). 01326_ Slammed into Twisted Machinery. 01326_ Destabilizing: Core damaged (-7). Map ----- +----------------------------------------------------+ | ?????????????????????????????????????????????????? | | ?????????????????????????????????????????????????? | | ?????????????????????????????????????????????????? | | ?????????????????????????????????????????????????? | | ?????????????????????????????????????????????????? | | ?????????????????????????????????????????????????? | | ?????????????????????????????????????????????????? | | ?????????????????????????????????????????????????? | | ?????????????????????????????????????????????????? | | ?????????????????????????????????????????????????? | | ???????????????????????????##????????????????????? | | ???????????????????????????# ########????????????? | | ???????????????????????????# #????????????? | | ???????????????????????????# " #????????????? | | ???????????????????????????##"" #??????????### | | ????????????????????????????## ###???######## | | ?????????????????????????????# #????## | | ?????????????????# ?????????## ##???# | | ?????????????????# ?????#### ##### # #### | | ?????????????????? ##???#"" ## ##??## | | ?????????????????""" #??#"" ##????# | | ????????????????# " "####"#### ##?????# | | ????????????????" " """##"#### ####??????## | | ??????????????? """" """"""# # ###??????????? | | ??????????????# "u""""" #????????????? | | ???????????????# ##@ "###"### #????????????? | | ???????????????## ??# "#?###?###????????????? | | ???????????????# ""#"???# #????????????????????? | | ???????????????# ??????## #????????????????????? | | ?????????????????????????####????????????????????? | | ?????????????????????????????????????????????????? | | ?????????????????????????????????????????????????? | | ?????????????????????????????????????????????????? | | ?????????????????????????????????????????????????? | | ?????????????????????????????????????????????????? | | ?????????????????????????????????????????????????? | | ?????????????????????????????????????????????????? | | ?????????????????????????????????????????????????? | | ?????????????????????????????????????????????????? | | ?????????????????????????????????????????????????? | | ?????????????????????????????????????????????????? | | ?????????????????????????????????????????????????? | | ?????????????????????????????????????????????????? | | ?????????????????????????????????????????????????? | | ?????????????????????????????????????????????????? | | ?????????????????????????????????????????????????? | | ?????????????????????????????????????????????????? | | ?????????????????????????????????????????????????? | | ?????????????????????????????????????????????????? | | ?????????????????????????????????????????????????? | +----------------------------------------------------+ Best States ------------- Heat Dissipation 25 Energy Generation 10 Energy Capacity 250 Matter Stores 300 Matter Capacity 300 Sight Range 16 Terrain Scan Density 10 Evasion (%) 55 Item Schematics ----------------- None Robot Schematics ------------------ None Fabricated ------------ Nothing Repaired ---------- Nothing Alien Tech Used ----------------- None Achievements -------------- None Challenges ------------ None Game ------ Seed MiningTransmissionModule Manual? 0 Play Time 00:07:17 Cumulative 185.4 hours Start 2025.09.26 @ 19:34:30 End 2025.09.26 @ 19:43:31 Sessions 1 Manual Loads 0 Difficulty Rogue Special Mode None Game No. 293 Rogue 290 Adventurer 3 Explorer 0 Win Type - Total 1 Types 1/0/0/0/0/0/0/0/0/0 Lore% 63 Gallery% 59 Achievement% 46 Wizard Run 0 Options --------- Layout 0 ASCII 0 Keyboard 0 Movement Mouse Keybinds 0 Fullscreen 2 Font 18/SmallcapsGlow Map View 76x50 Zoom Use 0% Tactical HUD 1 Map Filters NONE Filters NONE Steam 1 RUN: 87bdb554-bd3b-4810-aa67-3d39dbf8cfa6